[Event "Early-Titled-Tuesday-Blitz-January-30-2024"]
[Site "Chess.com"]
[Date "2024.01.30"]
[Round "5"]
[White "KVAIDAN"]
[Black "CaspiIsrael"]
[Result "0-1"]
[WhiteElo "2366"]
[BlackElo "2761"]
[TimeControl "180+1"]
[EndTime "8:55:53 PST"]
[Termination "CaspiIsrael won by checkmate"]

1. f4 {[%clk 0:03:00.9]} 1... d5 {[%clk 0:02:58.2]} 2. Nf3 {[%clk 0:03:00.4]}
2... g6 {[%clk 0:02:58.6]} 3. e3 {[%clk 0:02:59.7]} 3... Bg7 {[%clk 0:02:59.2]}
4. Be2 {[%clk 0:02:59.1]} 4... Nf6 {[%clk 0:02:55.7]} 5. O-O {[%clk 0:02:59.5]}
5... O-O {[%clk 0:02:56.4]} 6. d3 {[%clk 0:02:59.9]} 6... c5 {[%clk 0:02:56.7]}
7. Kh1 {[%clk 0:02:59.8]} 7... Nc6 {[%clk 0:02:57.3]} 8. a4 {[%clk 0:02:59.4]}
8... Re8 {[%clk 0:02:56.7]} 9. Ne5 {[%clk 0:02:59]} 9... Qc7 {[%clk 0:02:54]}
10. Nxc6 {[%clk 0:02:57.3]} 10... bxc6 {[%clk 0:02:50.8]} 11. Nc3 {[%clk
0:02:56.9]} 11... Rb8 {[%clk 0:02:50.9]} 12. e4 {[%clk 0:02:55.3]} 12... Ba6
{[%clk 0:02:32.9]} 13. f5 {[%clk 0:02:46.9]} 13... Rbd8 {[%clk 0:02:26.5]} 14.
Bf4 {[%clk 0:02:43.9]} 14... Qb7 {[%clk 0:02:25.9]} 15. e5 {[%clk 0:02:34.4]}
15... Qxb2 {[%clk 0:02:24]} 16. exf6 {[%clk 0:02:30.8]} 16... Bxf6 {[%clk
0:02:24.9]} 17. Na2 {[%clk 0:02:26.7]} 17... Qxa1 {[%clk 0:02:21.1]} 18. Qxa1
{[%clk 0:02:23.9]} 18... Bxa1 {[%clk 0:02:22]} 19. Rxa1 {[%clk 0:02:23.4]} 19...
gxf5 {[%clk 0:02:22.2]} 20. Rf1 {[%clk 0:02:07.3]} 20... f6 {[%clk 0:02:17]} 21.
Rf3 {[%clk 0:02:02.7]} 21... e5 {[%clk 0:02:14.8]} 22. Rg3+ {[%clk 0:02:00.9]}
22... Kh8 {[%clk 0:02:14.7]} 23. Bh6 {[%clk 0:01:52.4]} 23... Re7 {[%clk
0:02:13.9]} 24. Nc3 {[%clk 0:01:49.3]} 24... f4 {[%clk 0:02:12.4]} 25. Rh3
{[%clk 0:01:43.5]} 25... Rb8 {[%clk 0:02:08.2]} 26. Kg1 {[%clk 0:01:41.4]} 26...
Rb2 {[%clk 0:02:05.3]} 27. Bd1 {[%clk 0:01:23.7]} 27... c4 {[%clk 0:01:55.8]}
28. dxc4 {[%clk 0:01:16.2]} 28... Bxc4 {[%clk 0:01:55.6]} 29. Bf8 {[%clk
0:01:12.9]} 29... Rf7 {[%clk 0:01:44.4]} 30. Ba3 {[%clk 0:01:09.9]} 30... Rb8
{[%clk 0:01:44.2]} 31. Kf2 {[%clk 0:01:03.6]} 31... a5 {[%clk 0:01:43.6]} 32.
Ne2 {[%clk 0:00:54]} 32... Rg7 {[%clk 0:01:31.2]} 33. Ng1 {[%clk 0:00:52.4]}
33... Rb1 {[%clk 0:01:29.5]} 34. Bh5 {[%clk 0:00:45.2]} 34... Rf1# {[%clk
0:01:24.5]} 0-1

[Event "Early-Titled-Tuesday-Blitz-January-30-2024"]
[Site "Chess.com"]
[Date "2024.01.30"]
[Round "5"]
[White "Logman74"]
[Black "kekic76"]
[Result "1-0"]
[WhiteElo "2577"]
[BlackElo "2352"]
[TimeControl "180+1"]
[EndTime "8:55:56 PST"]
[Termination "Logman74 won on time"]

1. e4 {[%clk 0:03:00.9]} 1... e6 {[%clk 0:02:58.9]} 2. d4 {[%clk 0:03:00.1]}
2... d5 {[%clk 0:02:59.1]} 3. Nc3 {[%clk 0:03:00.4]} 3... Bb4 {[%clk 0:02:59.2]}
4. e5 {[%clk 0:03:00.2]} 4... Qd7 {[%clk 0:02:59.3]} 5. Nf3 {[%clk 0:02:57.5]}
5... b6 {[%clk 0:02:59.2]} 6. Bd2 {[%clk 0:02:45.8]} 6... Ba6 {[%clk 0:02:56.7]}
7. Bxa6 {[%clk 0:02:45.4]} 7... Nxa6 {[%clk 0:02:56.2]} 8. Qe2 {[%clk
0:02:44.1]} 8... Nb8 {[%clk 0:02:54.3]} 9. a3 {[%clk 0:02:43.3]} 9... Be7 {[%clk
0:02:53.9]} 10. h4 {[%clk 0:02:38.9]} 10... c5 {[%clk 0:02:51]} 11. h5 {[%clk
0:02:37.6]} 11... Nc6 {[%clk 0:02:50.2]} 12. Be3 {[%clk 0:02:28.8]} 12... Rc8
{[%clk 0:02:38.5]} 13. O-O {[%clk 0:02:09.7]} 13... cxd4 {[%clk 0:02:34.6]} 14.
Bxd4 {[%clk 0:02:02.6]} 14... Nh6 {[%clk 0:02:30.9]} 15. Qd3 {[%clk 0:01:53]}
15... Nf5 {[%clk 0:02:27.4]} 16. Ne2 {[%clk 0:01:53.4]} 16... h6 {[%clk
0:02:15.8]} 17. c3 {[%clk 0:01:52.1]} 17... Na5 {[%clk 0:02:11]} 18. Rad1 {[%clk
0:01:44.7]} 18... Qa4 {[%clk 0:02:04.9]} 19. Ng3 {[%clk 0:01:41.5]} 19... Nxd4
{[%clk 0:01:57.9]} 20. Nxd4 {[%clk 0:01:40.3]} 20... Qc4 {[%clk 0:01:38.2]} 21.
Qe3 {[%clk 0:01:36.7]} 1-0

[Event "Early-Titled-Tuesday-Blitz-January-30-2024"]
[Site "Chess.com"]
[Date "2024.01.30"]
[Round "5"]
[White "lularobs"]
[Black "NewYearGirl"]
[Result "0-1"]
[WhiteElo "1569"]
[BlackElo "2365"]
[TimeControl "180+1"]
[EndTime "8:55:57 PST"]
[Termination "NewYearGirl won by checkmate"]

1. e4 {[%clk 0:03:00.9]} 1... c5 {[%clk 0:03:00]} 2. d4 {[%clk 0:03:00.7]} 2...
cxd4 {[%clk 0:03:00.1]} 3. c3 {[%clk 0:03:01.6]} 3... dxc3 {[%clk 0:03:00.1]} 4.
Nxc3 {[%clk 0:03:01.7]} 4... d6 {[%clk 0:02:58.4]} 5. Nf3 {[%clk 0:03:02.3]}
5... g6 {[%clk 0:02:58.8]} 6. Bc4 {[%clk 0:03:01.7]} 6... Bg7 {[%clk 0:02:58.9]}
7. O-O {[%clk 0:03:00.6]} 7... Nf6 {[%clk 0:02:58.8]} 8. Qe2 {[%clk 0:02:51.7]}
8... O-O {[%clk 0:02:57.6]} 9. Rd1 {[%clk 0:02:39.8]} 9... Nfd7 {[%clk
0:02:51.6]} 10. Bg5 {[%clk 0:02:25.3]} 10... h6 {[%clk 0:02:49.5]} 11. Bf4
{[%clk 0:02:18.7]} 11... Nc6 {[%clk 0:02:49.1]} 12. Rac1 {[%clk 0:02:15.9]}
12... Nde5 {[%clk 0:02:47.3]} 13. Bb3 {[%clk 0:02:00.9]} 13... Bg4 {[%clk
0:02:44.7]} 14. Bxe5 {[%clk 0:01:46.6]} 14... Nxe5 {[%clk 0:02:43.8]} 15. Nd5
{[%clk 0:01:29.8]} 15... e6 {[%clk 0:02:37.6]} 16. Nc7 {[%clk 0:01:24.9]} 16...
Rc8 {[%clk 0:02:28.2]} 17. Nb5 {[%clk 0:01:23.4]} 17... Rxc1 {[%clk 0:02:27.2]}
18. Rxc1 {[%clk 0:01:24.3]} 18... Bxf3 {[%clk 0:02:26.1]} 19. gxf3 {[%clk
0:01:22.4]} 19... Qg5+ {[%clk 0:02:26.3]} 20. Kf1 {[%clk 0:01:02.1]} 20... Qxc1+
{[%clk 0:02:25.7]} 21. Kg2 {[%clk 0:00:53.2]} 21... Qg5+ {[%clk 0:02:21.8]} 22.
Kf1 {[%clk 0:00:53.3]} 22... Rc8 {[%clk 0:02:21.4]} 23. Nc3 {[%clk 0:00:39.6]}
23... Qh5 {[%clk 0:02:17]} 24. Bd1 {[%clk 0:00:34.1]} 24... Qxh2 {[%clk
0:02:15.8]} 25. Ke1 {[%clk 0:00:34.5]} 25... h5 {[%clk 0:02:11.9]} 26. Kd2
{[%clk 0:00:18.5]} 26... h4 {[%clk 0:02:08]} 27. Nb5 {[%clk 0:00:15.8]} 27... h3
{[%clk 0:02:04.1]} 28. Nxd6 {[%clk 0:00:15]} 28... Bh6+ {[%clk 0:01:56.6]} 29.
f4 {[%clk 0:00:11.5]} 29... Bxf4+ {[%clk 0:01:55.2]} 30. Qe3 {[%clk 0:00:07.9]}
30... Qxf2+ {[%clk 0:01:53.9]} 31. Be2 {[%clk 0:00:06.4]} 31... Qxe3+ {[%clk
0:01:53.9]} 32. Ke1 {[%clk 0:00:06.5]} 32... Rc1# {[%clk 0:01:53.5]} 0-1

[Event "Early-Titled-Tuesday-Blitz-January-30-2024"]
[Site "Chess.com"]
[Date "2024.01.30"]
[Round "5"]
[White "averageFM"]
[Black "margarita_2703"]
[Result "1-0"]
[WhiteElo "2574"]
[BlackElo "2332"]
[TimeControl "180+1"]
[EndTime "8:56:02 PST"]
[Termination "averageFM won by resignation"]

1. d4 {[%clk 0:02:53]} 1... d5 {[%clk 0:03:00.1]} 2. e4 {[%clk 0:02:51.3]} 2...
dxe4 {[%clk 0:03:00.1]} 3. Nc3 {[%clk 0:02:48.6]} 3... Nf6 {[%clk 0:02:56.6]} 4.
f3 {[%clk 0:02:48.2]} 4... exf3 {[%clk 0:02:54.6]} 5. Nxf3 {[%clk 0:02:49.1]}
5... Bf5 {[%clk 0:02:48.8]} 6. Bc4 {[%clk 0:02:40.5]} 6... e6 {[%clk 0:02:48.7]}
7. O-O {[%clk 0:02:36]} 7... c6 {[%clk 0:02:47.6]} 8. Ne5 {[%clk 0:02:34.1]}
8... Bg6 {[%clk 0:02:47.5]} 9. Be3 {[%clk 0:02:22.2]} 9... Nbd7 {[%clk
0:02:46.3]} 10. Qf3 {[%clk 0:02:09.5]} 10... Bd6 {[%clk 0:02:41.8]} 11. Bf4
{[%clk 0:01:52]} 11... Qe7 {[%clk 0:02:38.9]} 12. Rae1 {[%clk 0:01:46.7]} 12...
O-O-O {[%clk 0:02:35.9]} 13. Nxc6 {[%clk 0:01:37.5]} 13... Qf8 {[%clk
0:02:20.9]} 14. Nxa7+ {[%clk 0:00:55.9]} 14... Kb8 {[%clk 0:02:19.7]} 15. Nab5
{[%clk 0:00:52.7]} 15... Nb6 {[%clk 0:02:17.4]} 16. Nxd6 {[%clk 0:00:51.6]}
16... Rxd6 {[%clk 0:02:18.3]} 17. Bd3 {[%clk 0:00:45.8]} 17... Ka8 {[%clk
0:02:14]} 18. Bxg6 {[%clk 0:00:43.3]} 18... hxg6 {[%clk 0:02:08]} 19. Nb5 {[%clk
0:00:25]} 19... Rd5 {[%clk 0:02:01.9]} 20. Nc7+ {[%clk 0:00:24.2]} 20... Ka7
{[%clk 0:02:02.2]} 21. Nxd5 {[%clk 0:00:22.4]} 21... Nbxd5 {[%clk 0:02:03.1]}
22. c4 {[%clk 0:00:22]} 22... Nxf4 {[%clk 0:02:01.9]} 23. Qxf4 {[%clk 0:00:22]}
23... Qb4 {[%clk 0:01:59.2]} 24. Qe3 {[%clk 0:00:18.8]} 24... b6 {[%clk
0:01:54.5]} 25. Qc3 {[%clk 0:00:17.3]} 25... Qxc3 {[%clk 0:01:51.4]} 26. bxc3
{[%clk 0:00:17.1]} 26... Rc8 {[%clk 0:01:52.3]} 27. g4 {[%clk 0:00:15.9]} 27...
Rc7 {[%clk 0:01:49.9]} 28. g5 {[%clk 0:00:16.2]} 28... Nh5 {[%clk 0:01:43.7]}
29. d5 {[%clk 0:00:15.9]} 29... Rxc4 {[%clk 0:01:43.9]} 30. Rxf7+ {[%clk
0:00:14.9]} 30... Ka6 {[%clk 0:01:42.2]} 31. dxe6 {[%clk 0:00:15.1]} 31... Rxc3
{[%clk 0:01:42.6]} 32. e7 {[%clk 0:00:15.4]} 1-0

[Event "Early-Titled-Tuesday-Blitz-January-30-2024"]
[Site "Chess.com"]
[Date "2024.01.30"]
[Round "5"]
[White "Roosters19"]
[Black "RantomOpening"]
[Result "0-1"]
[WhiteElo "2307"]
[BlackElo "2507"]
[TimeControl "180+1"]
[EndTime "8:56:04 PST"]
[Termination "RantomOpening won by checkmate"]

1. d4 {[%clk 0:02:28.7]} 1... d5 {[%clk 0:02:59.6]} 2. Nf3 {[%clk 0:02:24.8]}
2... e6 {[%clk 0:02:59.9]} 3. Bf4 {[%clk 0:02:24.1]} 3... Nf6 {[%clk 0:03:00]}
4. e3 {[%clk 0:02:17.8]} 4... Bd6 {[%clk 0:03:00]} 5. Bg3 {[%clk 0:02:17.1]}
5... O-O {[%clk 0:02:58.4]} 6. Bd3 {[%clk 0:02:17.3]} 6... c5 {[%clk 0:02:57.1]}
7. c3 {[%clk 0:02:17.3]} 7... Qc7 {[%clk 0:02:57.2]} 8. Nbd2 {[%clk 0:02:17.6]}
8... Nbd7 {[%clk 0:02:53.4]} 9. Qe2 {[%clk 0:02:16.5]} 9... e5 {[%clk
0:02:53.7]} 10. dxe5 {[%clk 0:02:16.2]} 10... Nxe5 {[%clk 0:02:54.6]} 11. Nxe5
{[%clk 0:02:16.6]} 11... Bxe5 {[%clk 0:02:55.5]} 12. Nf3 {[%clk 0:02:16.8]}
12... Bd6 {[%clk 0:02:52.5]} 13. O-O-O {[%clk 0:02:15.4]} 13... Be6 {[%clk
0:02:45.7]} 14. Kb1 {[%clk 0:02:12.9]} 14... Rab8 {[%clk 0:02:43]} 15. Ng5
{[%clk 0:02:10.6]} 15... h6 {[%clk 0:02:38.2]} 16. Nxe6 {[%clk 0:02:10.2]} 16...
fxe6 {[%clk 0:02:39.1]} 17. Bc2 {[%clk 0:02:10.4]} 17... b5 {[%clk 0:02:36.2]}
18. e4 {[%clk 0:02:08.3]} 18... Bxg3 {[%clk 0:02:35.5]} 19. hxg3 {[%clk
0:02:07.2]} 19... b4 {[%clk 0:02:34.9]} 20. cxb4 {[%clk 0:02:06.5]} 20... Rxb4
{[%clk 0:02:34.3]} 21. exd5 {[%clk 0:02:06.6]} 21... exd5 {[%clk 0:02:30.1]} 22.
g4 {[%clk 0:02:04.7]} 22... Rfb8 {[%clk 0:02:20.3]} 23. b3 {[%clk 0:00:26.7]}
23... c4 {[%clk 0:01:59.9]} 24. g5 {[%clk 0:00:21.9]} 24... cxb3 {[%clk
0:01:58.8]} 25. axb3 {[%clk 0:00:20.8]} 25... Ne4 {[%clk 0:01:40.3]} 26. Qd3
{[%clk 0:00:12.5]} 26... Nc3+ {[%clk 0:01:40.2]} 27. Kb2 {[%clk 0:00:12.4]}
27... Nxd1+ {[%clk 0:01:40.5]} 28. Rxd1 {[%clk 0:00:12.1]} 28... Qe5+ {[%clk
0:01:39.6]} 29. Ka2 {[%clk 0:00:10.9]} 29... Ra4+ {[%clk 0:01:39.4]} 30. bxa4
{[%clk 0:00:09.9]} 30... Qb2# {[%clk 0:01:39.5]} 0-1

[Event "Early-Titled-Tuesday-Blitz-January-30-2024"]
[Site "Chess.com"]
[Date "2024.01.30"]
[Round "5"]
[White "Legendinunknown"]
[Black "MITerryble"]
[Result "0-1"]
[WhiteElo "2835"]
[BlackElo "2992"]
[TimeControl "180+1"]
[EndTime "8:56:05 PST"]
[Termination "MITerryble won by checkmate"]

1. d4 {[%clk 0:02:43.4]} 1... e6 {[%clk 0:02:59.1]} 2. c4 {[%clk 0:02:42.4]}
2... Bb4+ {[%clk 0:02:58.8]} 3. Nd2 {[%clk 0:02:39.4]} 3... Nf6 {[%clk
0:02:58.5]} 4. Nf3 {[%clk 0:02:37.7]} 4... a5 {[%clk 0:02:56.4]} 5. e3 {[%clk
0:02:36.3]} 5... b6 {[%clk 0:02:56.5]} 6. Bd3 {[%clk 0:02:36]} 6... Bb7 {[%clk
0:02:57.1]} 7. O-O {[%clk 0:02:35.8]} 7... Bxd2 {[%clk 0:02:48.9]} 8. Nxd2
{[%clk 0:02:34.6]} 8... d5 {[%clk 0:02:47.7]} 9. Qc2 {[%clk 0:02:31.1]} 9... O-O
{[%clk 0:02:46.4]} 10. b3 {[%clk 0:02:30.4]} 10... Nbd7 {[%clk 0:02:45.1]} 11.
Bb2 {[%clk 0:02:28.7]} 11... c5 {[%clk 0:02:26.2]} 12. Rac1 {[%clk 0:02:25.7]}
12... Rc8 {[%clk 0:02:25.5]} 13. Qb1 {[%clk 0:02:24.9]} 13... Qe7 {[%clk
0:02:22.6]} 14. Rfd1 {[%clk 0:02:22.2]} 14... cxd4 {[%clk 0:02:01.1]} 15. Bxd4
{[%clk 0:02:20.5]} 15... e5 {[%clk 0:01:54.4]} 16. Bb2 {[%clk 0:02:19.1]} 16...
Nc5 {[%clk 0:01:45.4]} 17. Be2 {[%clk 0:02:17.7]} 17... d4 {[%clk 0:01:43.2]}
18. exd4 {[%clk 0:02:17.1]} 18... exd4 {[%clk 0:01:44.1]} 19. Bf3 {[%clk
0:02:10.4]} 19... Rcd8 {[%clk 0:01:34.9]} 20. Bxb7 {[%clk 0:02:08.4]} 20... Qxb7
{[%clk 0:01:35.8]} 21. Nf3 {[%clk 0:02:08.3]} 21... d3 {[%clk 0:01:29.7]} 22.
Bxf6 {[%clk 0:02:06]} 22... gxf6 {[%clk 0:01:29.7]} 23. a3 {[%clk 0:01:57.5]}
23... Qe4 {[%clk 0:01:20.8]} 24. Rc3 {[%clk 0:01:48.9]} 24... Kh8 {[%clk
0:00:47]} 25. b4 {[%clk 0:01:34.3]} 25... Rg8 {[%clk 0:00:46.7]} 26. Kh1 {[%clk
0:01:27.9]} 26... Rxg2 {[%clk 0:00:42.3]} 27. Kxg2 {[%clk 0:01:09.7]} 27... Rg8+
{[%clk 0:00:41]} 28. Kf1 {[%clk 0:01:10.3]} 28... Qe2# {[%clk 0:00:40.5]} 0-1

[Event "Early-Titled-Tuesday-Blitz-January-30-2024"]
[Site "Chess.com"]
[Date "2024.01.30"]
[Round "5"]
[White "Timerkhanov"]
[Black "MFatigue"]
[Result "1-0"]
[WhiteElo "2661"]
[BlackElo "2463"]
[TimeControl "180+1"]
[EndTime "8:56:08 PST"]
[Termination "Timerkhanov won on time"]

1. d4 {[%clk 0:03:00.9]} 1... d5 {[%clk 0:02:57.9]} 2. Nf3 {[%clk 0:03:00.5]}
2... Nf6 {[%clk 0:02:57.9]} 3. g3 {[%clk 0:03:01.4]} 3... c5 {[%clk 0:02:57.3]}
4. Bg2 {[%clk 0:03:01.8]} 4... cxd4 {[%clk 0:02:58]} 5. O-O {[%clk 0:03:02.1]}
5... h6 {[%clk 0:02:58.6]} 6. Nxd4 {[%clk 0:02:58.1]} 6... e5 {[%clk 0:02:56.9]}
7. Nb3 {[%clk 0:02:58.1]} 7... Nc6 {[%clk 0:02:56.4]} 8. Nc3 {[%clk 0:02:52.9]}
8... Be6 {[%clk 0:02:54.4]} 9. f4 {[%clk 0:02:46.6]} 9... Qb6+ {[%clk
0:02:28.6]} 10. e3 {[%clk 0:02:40.3]} 10... exf4 {[%clk 0:01:44.3]} 11. gxf4
{[%clk 0:02:39.9]} 11... Be7 {[%clk 0:01:26.6]} 12. Kh1 {[%clk 0:02:20.5]} 12...
Rd8 {[%clk 0:01:22.2]} 13. Nd4 {[%clk 0:02:18.9]} 13... Nxd4 {[%clk 0:01:18.5]}
14. exd4 {[%clk 0:02:18.2]} 14... Bf5 {[%clk 0:01:12.3]} 15. Re1 {[%clk
0:02:07.5]} 15... Rd7 {[%clk 0:00:56.1]} 16. Re5 {[%clk 0:02:01.3]} 16... Ng4
{[%clk 0:00:51.6]} 17. Re2 {[%clk 0:01:58.4]} 17... Nf6 {[%clk 0:00:40.2]} 18.
Qe1 {[%clk 0:01:40.1]} 18... Qxd4 {[%clk 0:00:22.5]} 19. Be3 {[%clk 0:01:34.7]}
19... Qb4 {[%clk 0:00:20.4]} 20. a3 {[%clk 0:01:27.2]} 20... Qd6 {[%clk
0:00:10.5]} 21. Nb5 {[%clk 0:01:26.3]} 21... Qc6 {[%clk 0:00:06]} 22. Nd4 {[%clk
0:01:24.6]} 1-0

[Event "Early-Titled-Tuesday-Blitz-January-30-2024"]
[Site "Chess.com"]
[Date "2024.01.30"]
[Round "5"]
[White "Alexchess1984"]
[Black "Grischuk"]
[Result "0-1"]
[WhiteElo "2742"]
[BlackElo "3081"]
[TimeControl "180+1"]
[EndTime "8:56:09 PST"]
[Termination "Grischuk won by resignation"]

1. e4 {[%clk 0:03:00.9]} 1... e5 {[%clk 0:02:57.8]} 2. Nf3 {[%clk 0:02:56]} 2...
Nc6 {[%clk 0:02:57.3]} 3. Bb5 {[%clk 0:02:55.6]} 3... a6 {[%clk 0:02:57.1]} 4.
Ba4 {[%clk 0:02:55.4]} 4... Nf6 {[%clk 0:02:57.1]} 5. d3 {[%clk 0:02:54.3]} 5...
d6 {[%clk 0:02:56.3]} 6. c3 {[%clk 0:02:53.3]} 6... g6 {[%clk 0:02:56.5]} 7. O-O
{[%clk 0:02:52.9]} 7... Bg7 {[%clk 0:02:57.1]} 8. h3 {[%clk 0:02:52.7]} 8... O-O
{[%clk 0:02:57.6]} 9. Re1 {[%clk 0:02:53.3]} 9... b5 {[%clk 0:02:54.6]} 10. Bb3
{[%clk 0:02:52.8]} 10... Na5 {[%clk 0:02:54.6]} 11. Bc2 {[%clk 0:02:51.9]} 11...
c5 {[%clk 0:02:55.3]} 12. Nbd2 {[%clk 0:02:50.8]} 12... Re8 {[%clk 0:02:50.6]}
13. Nf1 {[%clk 0:02:46.5]} 13... h6 {[%clk 0:02:42]} 14. Ng3 {[%clk 0:02:39]}
14... Nc6 {[%clk 0:02:41.7]} 15. Be3 {[%clk 0:02:35.9]} 15... Bd7 {[%clk
0:02:00.6]} 16. Qd2 {[%clk 0:02:35.1]} 16... Kh7 {[%clk 0:02:00]} 17. d4 {[%clk
0:02:35.1]} 17... Qe7 {[%clk 0:01:39.9]} 18. d5 {[%clk 0:02:32.9]} 18... Na5
{[%clk 0:01:24.1]} 19. b3 {[%clk 0:02:32.5]} 19... Reb8 {[%clk 0:01:21.9]} 20.
Kh2 {[%clk 0:02:10.8]} 20... Nb7 {[%clk 0:01:19.8]} 21. Ng1 {[%clk 0:01:54.6]}
21... a5 {[%clk 0:01:15.7]} 22. f4 {[%clk 0:01:54.1]} 22... b4 {[%clk
0:01:11.6]} 23. c4 {[%clk 0:01:39.6]} 23... a4 {[%clk 0:01:10.5]} 24. Rad1
{[%clk 0:01:35.1]} 24... axb3 {[%clk 0:01:08.6]} 25. Bxb3 {[%clk 0:01:36]} 25...
h5 {[%clk 0:00:50.4]} 26. Nf3 {[%clk 0:01:29.3]} 26... h4 {[%clk 0:00:49.1]} 27.
Nxh4 {[%clk 0:01:24.3]} 27... Ng4+ {[%clk 0:00:48.9]} 28. hxg4 {[%clk
0:01:13.4]} 28... Qxh4+ {[%clk 0:00:48.8]} 29. Kg1 {[%clk 0:01:14.3]} 29... Qxg3
{[%clk 0:00:48.8]} 30. f5 {[%clk 0:01:07.1]} 30... Qxg4 {[%clk 0:00:43.2]} 0-1

[Event "Early-Titled-Tuesday-Blitz-January-30-2024"]
[Site "Chess.com"]
[Date "2024.01.30"]
[Round "5"]
[White "hmatyi07"]
[Black "Viktor_Poddubnyi"]
[Result "1-0"]
[WhiteElo "2213"]
[BlackElo "2305"]
[TimeControl "180+1"]
[EndTime "8:56:14 PST"]
[Termination "hmatyi07 won by resignation"]

1. e4 {[%clk 0:02:28.6]} 1... g6 {[%clk 0:03:00.5]} 2. d4 {[%clk 0:02:27.7]}
2... Bg7 {[%clk 0:03:00.1]} 3. Nc3 {[%clk 0:02:25.5]} 3... d6 {[%clk 0:03:00.1]}
4. Be3 {[%clk 0:02:25.7]} 4... a6 {[%clk 0:02:59.5]} 5. Qd2 {[%clk 0:02:25.3]}
5... b5 {[%clk 0:02:59.1]} 6. O-O-O {[%clk 0:02:25]} 6... Bb7 {[%clk 0:02:58.6]}
7. f3 {[%clk 0:02:24.7]} 7... Nd7 {[%clk 0:02:58.8]} 8. h4 {[%clk 0:02:23.8]}
8... h5 {[%clk 0:02:59.3]} 9. Nh3 {[%clk 0:02:23.9]} 9... Ngf6 {[%clk
0:02:56.1]} 10. Ng5 {[%clk 0:02:22.3]} 10... e6 {[%clk 0:02:56.6]} 11. Kb1
{[%clk 0:02:21.1]} 11... Qe7 {[%clk 0:02:57]} 12. Ne2 {[%clk 0:02:05.9]} 12...
e5 {[%clk 0:02:35.2]} 13. d5 {[%clk 0:01:54.5]} 13... Nb6 {[%clk 0:01:52.6]} 14.
Nc1 {[%clk 0:01:52]} 14... O-O {[%clk 0:01:25.7]} 15. Nb3 {[%clk 0:01:51.2]}
15... a5 {[%clk 0:01:09.1]} 16. Nxa5 {[%clk 0:01:48.8]} 16... Ba6 {[%clk
0:00:56.6]} 17. Nc6 {[%clk 0:01:45.3]} 17... Qd7 {[%clk 0:00:54.9]} 18. Bxb6
{[%clk 0:01:35.8]} 18... cxb6 {[%clk 0:00:54.2]} 19. Qb4 {[%clk 0:01:33.8]}
19... Qc7 {[%clk 0:00:43.1]} 20. Bxb5 {[%clk 0:01:29.8]} 20... Nd7 {[%clk
0:00:40]} 21. g4 {[%clk 0:01:20.6]} 21... hxg4 {[%clk 0:00:29.6]} 22. Ne7+
{[%clk 0:01:13.1]} 22... Kh8 {[%clk 0:00:27.3]} 23. h5 {[%clk 0:01:12.6]} 23...
Bf6 {[%clk 0:00:19.3]} 24. hxg6+ {[%clk 0:01:10.6]} 1-0

[Event "Early-Titled-Tuesday-Blitz-January-30-2024"]
[Site "Chess.com"]
[Date "2024.01.30"]
[Round "5"]
[White "KanalSzachowy"]
[Black "Kunalm64"]
[Result "1-0"]
[WhiteElo "2349"]
[BlackElo "2542"]
[TimeControl "180+1"]
[EndTime "8:56:17 PST"]
[Termination "KanalSzachowy won by checkmate"]

1. e4 {[%clk 0:03:00.9]} 1... c6 {[%clk 0:02:56.3]} 2. d4 {[%clk 0:03:00.6]}
2... d5 {[%clk 0:02:55.7]} 3. f3 {[%clk 0:03:01.5]} 3... dxe4 {[%clk 0:02:48.9]}
4. fxe4 {[%clk 0:03:02.4]} 4... e5 {[%clk 0:02:48.5]} 5. Nf3 {[%clk 0:03:01.5]}
5... Bg4 {[%clk 0:02:47.8]} 6. Bc4 {[%clk 0:03:01.7]} 6... Nd7 {[%clk
0:02:45.8]} 7. c3 {[%clk 0:03:00.7]} 7... b5 {[%clk 0:02:40.6]} 8. Bd3 {[%clk
0:02:52.7]} 8... Ngf6 {[%clk 0:02:33.7]} 9. O-O {[%clk 0:02:51.7]} 9... a6
{[%clk 0:02:24.1]} 10. Bg5 {[%clk 0:02:50.7]} 10... c5 {[%clk 0:02:18.5]} 11.
Qe1 {[%clk 0:02:37.8]} 11... Be7 {[%clk 0:01:59.9]} 12. d5 {[%clk 0:02:31.6]}
12... c4 {[%clk 0:01:53.5]} 13. Bc2 {[%clk 0:02:30.9]} 13... Bh5 {[%clk
0:01:45.6]} 14. Qg3 {[%clk 0:02:27.1]} 14... Bg6 {[%clk 0:01:41.3]} 15. Nxe5
{[%clk 0:02:19.4]} 15... Nxe5 {[%clk 0:01:39.1]} 16. Qxe5 {[%clk 0:02:18.3]}
16... O-O {[%clk 0:01:38.1]} 17. Bxf6 {[%clk 0:02:10]} 17... Bxf6 {[%clk
0:01:34.3]} 18. Qg3 {[%clk 0:02:10.5]} 18... b4 {[%clk 0:01:12]} 19. Nd2 {[%clk
0:01:55]} 19... bxc3 {[%clk 0:01:09.8]} 20. bxc3 {[%clk 0:01:55.9]} 20... Qb6+
{[%clk 0:01:06.3]} 21. Kh1 {[%clk 0:01:51.1]} 21... Qb2 {[%clk 0:01:04.3]} 22.
Rac1 {[%clk 0:01:49.1]} 22... Rac8 {[%clk 0:01:01.4]} 23. d6 {[%clk 0:01:45.4]}
23... Bxc3 {[%clk 0:00:51.8]} 24. d7 {[%clk 0:01:43.1]} 24... Bxd2 {[%clk
0:00:50.9]} 25. dxc8=Q {[%clk 0:01:37.5]} 25... Rxc8 {[%clk 0:00:47.8]} 26. Rb1
{[%clk 0:01:37.2]} 26... Qxc2 {[%clk 0:00:41]} 27. Rb8 {[%clk 0:01:37.3]} 27...
Rf8 {[%clk 0:00:13.6]} 28. Qd6 {[%clk 0:01:33.8]} 28... Bb4 {[%clk 0:00:10.4]}
29. Rxf8# {[%clk 0:01:32.5]} 1-0